[Event "Israeli U18-Team-ch 2024"]
[Site "Rishon LeZion"]
[Date "2024.08.01"]
[Round "7.6"]
[White "Vagman, Roy"]
[Black "Ostrovsky Berman, Noam"]
[Result "0-1"]
[ECO "C00"]
[WhiteElo "2308"]
[BlackElo "2053"]
[Annotator "RC"]
[PlyCount "92"]
[EventDate "2024.08.01"]
[EventType "team-tourn"]
[EventCountry "ISR"]
[SourceTitle "playchess.com"]
[Source "ChessBase"]
[SourceQuality "1"]
[TimeControl "3000+10"]

1. e4 {[%emt 0:01:59]} e6 {[%emt 0:00:39]} 2. d3 {[%emt 0:00:40]} d5 {[%emt 0:00:08]} 3. Nd2 {[%emt 0:00:06]} Nf6 {[%emt 0:00:05]} 4. Ngf3 {[%emt 0:00:15]} Nc6 {[%emt 0:00:35]} 5. g3 {[%emt 0:00:21]} dxe4 {[%emt 0:00:20]} 6. dxe4 {[%emt 0:00:09]} Bc5 {[%emt 0:00:20]} 7. Bg2 {[%emt 0:00:11]} e5 {[%emt 0:00:11]} 8. O-O {[%emt 0:00:18]} O-O {[%emt 0:00:10]} 9. Qe2 {[%emt 0:01:39]} Qe7 {[%emt 0:01:01]} 10. c3 {[%emt 0:02:00]} a5 {[%emt 0:00:09]} 11. a4 {[%emt 0:00:41]} Rd8 {[%emt 0:04:00]} 12. Nh4 {[%emt 0:04:34]} Bg4 {[%emt 0:07:19]} 13. Ndf3 {[%emt 0:05:02]} h6 {[%emt 0:01:16]} 14. h3 {[%emt 0:01:07]} Be6 {[%emt 0:00:13]} 15. g4 {[%emt 0:02:02]} Qd7 {[%emt 0:09:56]} 16. Re1 {[%emt 0:00:24]} Qd3 {[%emt 0:01:55]} 17. Qxd3 {[%emt 0:00:34]} Rxd3 {[%emt 0:00:06]} 18. Bf1 {[%emt 0:00:10]} Rd6 {[%emt 0:05:20]} 19. Bb5 {[%emt 0:02:01]} Bb3 {[%emt 0:03:35]} 20. Nd2 {[%emt 0:07:14]} Bc2 {[%emt 0:01:10]} 21. Nf5 {[%emt 0:01:14]} Rd7 {[%emt 0:00:45]} 22. Ra2 {[%emt 0:02:30]} Nxe4 {[%emt 0:03:22]} 23. Nxe4 {[%emt 0:01:23]} Bxe4 {[%emt 0:00:04]} 24. Rxe4 {[%emt 0:00:37]} Rd1+ {[%emt 0:00:09]} 25. Kg2 {[%emt 0:00:11]} Rxc1 {[%emt 0:00:08]} 26. Bxc6 {[%emt 0:00:55]} bxc6 {[%emt 0:00:03]} 27. Rxe5 {[%emt 0:00:13]} Bd6 {[%emt 0:04:30]} 28. Re2 {[%emt 0:00:31]} Kf8 {[%emt 0:01:19]} 29. Nd4 {[%emt 0:01:32]} c5 {[%emt 0:00:06]} 30. Nb3 {[%emt 0:00:18]} Rd1 {[%emt 0:00:40]} 31. Ra1 {[%emt 0:00:10]} Rxa1 {[%emt 0:01:31]} 32. Nxa1 {[%emt 0:00:06]} Rb8 {[%emt 0:00:04]} 33. c4 {[%emt 0:00:59]} f6 {[%emt 0:00:38]} 34. h4 {[%emt 0:06:12]} Be5 {[%emt 0:00:08]} 35. Re3 {[%emt 0:03:38]} Rxb2 {[%emt 0:00:07]} 36. Nb3 {[%emt 0:04:14]} Bd4 {[%emt 0:00:19]} 37. Rf3 {[%emt 0:00:00]} Bxf2 {[%emt 0:00:16]} 38. Kh3 {[%emt 0:00:00]} Bd4 {[%emt 0:00:01]} 39. g5 {[%emt 0:00:00]} h5 {[%emt 0:00:19]} 40. gxf6 {[%emt 0:00:00]} Be5 {[%emt 0:00:19]} 41. fxg7+ {[%emt 0:00:00]} Kxg7 {[%emt 0:00:08]} 42. Nd2 {[%emt 0:00:00]} Rxd2 {[%emt 0:00:10]} 43. Rf7+ {[%emt 0:00:00]} Kg6 {[%emt 0:00:11]} 44. Rf2 {[%emt 0:00:00]} Rd3+ {[%emt 0:00:33]} 45. Kg2 {[%emt 0:00:00]} Rd4 {[%emt 0:00:05]} 46. Re2 {[%emt 0:00:00]} Kf5 {[%emt 0:00:04]} 0-1

[Event "Israeli U18-Team-ch 2024"]
[Site "Rishon LeZion"]
[Date "2024.08.01"]
[Round "7.7"]
[White "Manyevich, Rom"]
[Black "Pelech, Roee"]
[Result "0-1"]
[ECO "A09"]
[WhiteElo "2015"]
[BlackElo "2267"]
[Annotator "RC"]
[PlyCount "96"]
[EventDate "2024.08.01"]
[EventType "team-tourn"]
[EventCountry "ISR"]
[SourceTitle "playchess.com"]
[Source "ChessBase"]
[SourceQuality "1"]
[TimeControl "3000+10"]

1. Nf3 {[%emt 0:00:05]} d5 {[%emt 0:01:04]} 2. c4 {[%emt 0:00:21]} d4 {[%emt 0:01:14]} 3. b4 {[%emt 0:00:20]} g6 {[%emt 0:00:59]} 4. Qb3 {[%emt 0:00:13]} Bg7 {[%emt 0:00:21]} 5. Bb2 {[%emt 0:00:27]} e5 {[%emt 0:00:13]} 6. d3 {[%emt 0:00:27]} Ne7 {[%emt 0:00:33]} 7. g3 {[%emt 0:00:23]} O-O {[%emt 0:01:00]} 8. Bg2 {[%emt 0:00:05]} h6 {[%emt 0:02:48]} 9. O-O {[%emt 0:00:17]} Be6 {[%emt 0:01:04]} 10. Nbd2 {[%emt 0:00:56]} Nd7 {[%emt 0:00:41]} 11. a4 {[%emt 0:01:16]} c5 {[%emt 0:00:29]} 12. b5 {[%emt 0:04:08]} g5 {[%emt 0:01:15]} 13. a5 {[%emt 0:02:42]} f5 {[%emt 0:01:38]} 14. Qa3 {[%emt 0:07:22]} g4 {[%emt 0:04:14]} 15. Ne1 {[%emt 0:00:49]} Qc7 {[%emt 0:00:06]} 16. a6 {[%emt 0:01:30]} b6 {[%emt 0:00:08]} 17. Nc2 {[%emt 0:04:26]} Rad8 {[%emt 0:01:05]} 18. e3 {[%emt 0:01:38]} f4 {[%emt 0:00:40]} 19. exf4 {[%emt 0:01:52]} exf4 {[%emt 0:00:59]} 20. Nxd4 {[%emt 0:01:35]} Bxd4 {[%emt 0:00:14]} 21. Bxd4 {[%emt 0:00:20]} f3 {[%emt 0:00:05]} 22. Bh1 {[%emt 0:02:09]} Ng6 {[%emt 0:00:17]} 23. Be3 {[%emt 0:05:08]} Nde5 {[%emt 0:01:09]} 24. Rad1 {[%emt 0:02:10]} Rxd3 {[%emt 0:02:08]} 25. Qb2 {[%emt 0:00:06]} Qd8 {[%emt 0:01:40]} 26. Qc2 {[%emt 0:02:30]} Bf5 {[%emt 0:04:17]} 27. Qa2 {[%emt 0:01:59]} Kh7 {[%emt 0:01:30]} 28. Qa1 {[%emt 0:00:37]} Qe7 {[%emt 0:02:09]} 29. Rfe1 {[%emt 0:00:52]} Qf7 {[%emt 0:05:09]} 30. h4 {[%emt 0:03:07]} Nxc4 {[%emt 0:03:55]} 31. Nxc4 {[%emt 0:00:19]} Qxc4 {[%emt 0:00:07]} 32. h5 {[%emt 0:00:50]} Nh8 {[%emt 0:00:29]} 33. Qe5 {[%emt 0:00:41]} Qc3 {[%emt 0:03:50]} 34. Qc7+ {[%emt 0:00:49]} Rf7 {[%emt 0:00:09]} 35. Qf4 {[%emt 0:00:32]} Qg7 {[%emt 0:01:20]} 36. Qc4 {[%emt 0:00:21]} Rfd7 {[%emt 0:00:34]} 37. Rxd3 {[%emt 0:00:17]} Bxd3 {[%emt 0:00:43]} 38. Qf4 {[%emt 0:00:43]} Nf7 {[%emt 0:01:42]} 39. Bc1 {[%emt 0:01:05]} Qd4 {[%emt 0:01:34]} 40. Qb8 {[%emt 0:00:40]} Be2 {[%emt 0:00:13]} 41. Qe8 {[%emt 0:00:32]} c4 {[%emt 0:01:06]} 42. Rxe2 {[%emt 0:00:14]} fxe2 {[%emt 0:00:01]} 43. Be4+ {[%emt 0:00:01]} Kg7 {[%emt 0:00:02]} 44. Bxh6+ {[%emt 0:00:10]} Nxh6 {[%emt 0:01:08]} 45. Qg6+ {[%emt 0:00:04]} Kf8 {[%emt 0:00:02]} 46. Qxh6+ {[%emt 0:00:08]} Ke7 {[%emt 0:00:41]} 47. Qh7+ {[%emt 0:00:23]} Kd8 {[%emt 0:01:15]} 48. Qg8+ {[%emt 0:00:15]} Kc7 {[%emt 0:00:00]} 0-1

[Event "Israeli U18-Team-ch 2024"]
[Site "Rishon LeZion"]
[Date "2024.08.01"]
[Round "7.8"]
[White "Tashkinova, Sofiia"]
[Black "Hermans, Ray"]
[Result "1-0"]
[ECO "C12"]
[WhiteElo "2127"]
[BlackElo "1926"]
[Annotator "RC"]
[PlyCount "69"]
[EventDate "2024.08.01"]
[EventType "team-tourn"]
[EventCountry "ISR"]
[SourceTitle "playchess.com"]
[Source "ChessBase"]
[SourceQuality "1"]
[TimeControl "3000+10"]

1. e4 {[%emt 0:01:54]} e6 {[%emt 0:00:12]} 2. d4 {[%emt 0:00:33]} d5 {[%emt 0:00:17]} 3. Nc3 {[%emt 0:00:40]} Nf6 {[%emt 0:00:17]} 4. Bg5 {[%emt 0:00:56]} Bb4 {[%emt 0:00:36]} 5. e5 {[%emt 0:00:56]} h6 {[%emt 0:00:12]} 6. Bd2 {[%emt 0:00:49]} Bxc3 {[%emt 0:00:23]} 7. bxc3 {[%emt 0:00:08]} Ne4 {[%emt 0:00:30]} 8. Bc1 {[%emt 0:01:09]} c5 {[%emt 0:01:12]} 9. Ne2 {[%emt 0:01:21]} Nc6 {[%emt 0:04:00]} 10. f3 {[%emt 0:01:50]} Ng5 {[%emt 0:01:42]} 11. h4 {[%emt 0:00:45]} Nh7 {[%emt 0:00:06]} 12. Kf2 {[%emt 0:04:11]} f6 {[%emt 0:05:20]} 13. Nf4 {[%emt 0:09:58]} Nf8 {[%emt 0:03:17]} 14. Nh5 {[%emt 0:03:01]} fxe5 {[%emt 0:03:40]} 15. dxe5 {[%emt 0:01:42]} Nxe5 {[%emt 0:02:08]} 16. Nxg7+ {[%emt 0:00:58]} Kf7 {[%emt 0:00:13]} 17. Nh5 {[%emt 0:00:14]} Nfg6 {[%emt 0:02:47]} 18. g3 {[%emt 0:01:26]} b6 {[%emt 0:01:08]} 19. Bh3 {[%emt 0:02:34]} Nc4 {[%emt 0:03:18]} 20. f4 {[%emt 0:03:59]} d4 {[%emt 0:05:51]} 21. Bg2 {[%emt 0:02:37]} Rb8 {[%emt 0:01:36]} 22. Qd3 {[%emt 0:01:48]} b5 {[%emt 0:02:27]} 23. a4 {[%emt 0:02:04]} Bb7 {[%emt 0:01:38]} 24. Bxb7 {[%emt 0:00:42]} Rxb7 {[%emt 0:00:01]} 25. axb5 {[%emt 0:03:27]} Qd5 {[%emt 0:00:22]} 26. Re1 {[%emt 0:00:28]} Nd6 {[%emt 0:11:17]} 27. Ra6 {[%emt 0:00:45]} Re8 {[%emt 0:00:00]} 28. g4 {[%emt 0:02:02]} c4 {[%emt 0:00:00]} 29. Qxd4 {[%emt 0:00:29]} Qxd4+ {[%emt 0:00:00]} 30. cxd4 {[%emt 0:01:44]} Nxb5 {[%emt 0:00:00]} 31. d5 {[%emt 0:00:00]} e5 {[%emt 0:00:00]} 32. f5 {[%emt 0:00:00]} Ne7 {[%emt 0:00:00]} 33. Rxe5 {[%emt 0:00:00]} Nc7 {[%emt 0:00:00]} 34. Rf6+ {[%emt 0:00:02]} Kg8 {[%emt 0:00:00]} 35. d6 {[%emt 0:00:14]} 1-0

[Event "Israeli U18-Team-ch 2024"]
[Site "Rishon LeZion"]
[Date "2024.08.01"]
[Round "7.11"]
[White "Afek, Itay"]
[Black "Kochavi, Dana"]
[Result "1-0"]
[ECO "B10"]
[WhiteElo "1913"]
[BlackElo "2135"]
[Annotator "RC"]
[PlyCount "67"]
[EventDate "2024.08.01"]
[EventType "team-tourn"]
[EventCountry "ISR"]
[SourceTitle "playchess.com"]
[Source "ChessBase"]
[SourceQuality "1"]
[TimeControl "3000+10"]

1. e4 {[%emt 0:00:10]} c6 {[%emt 0:04:44]} 2. d3 {[%emt 0:00:00]} d5 {[%emt 0:00:08]} 3. Nd2 {[%emt 0:00:06]} e5 {[%emt 0:00:09]} 4. Ngf3 {[%emt 0:00:06]} Bd6 {[%emt 0:00:04]} 5. g3 {[%emt 0:00:12]} Nf6 {[%emt 0:00:05]} 6. Bg2 {[%emt 0:00:06]} O-O {[%emt 0:00:05]} 7. O-O {[%emt 0:00:07]} Re8 {[%emt 0:01:39]} 8. a4 {[%emt 0:00:55]} Nbd7 {[%emt 0:02:50]} 9. Qe2 {[%emt 0:00:27]} b6 {[%emt 0:02:57]} 10. Rd1 {[%emt 0:05:06]} Qc7 {[%emt 0:01:13]} 11. Nf1 {[%emt 0:03:36]} Ba6 {[%emt 0:02:28]} 12. Qe1 {[%emt 0:01:30]} Rad8 {[%emt 0:00:42]} 13. a5 {[%emt 0:02:02]} Bb7 {[%emt 0:01:04]} 14. Nh4 {[%emt 0:01:12]} Bf8 {[%emt 0:03:32]} 15. Nf5 {[%emt 0:04:02]} h6 {[%emt 0:00:09]} 16. h3 {[%emt 0:01:18]} Nc5 {[%emt 0:06:05]} 17. Bd2 {[%emt 0:04:04]} Ne6 {[%emt 0:01:24]} 18. N1e3 {[%emt 0:01:42]} g6 {[%emt 0:00:51]} 19. Nh4 {[%emt 0:01:18]} Ng5 {[%emt 0:06:12]} 20. Nf3 {[%emt 0:02:44]} Ne6 {[%emt 0:00:56]} 21. Nh4 {[%emt 0:00:41]} Qc8 {[%emt 0:04:04]} 22. Nf3 {[%emt 0:01:12]} Nd4 {[%emt 0:08:03]} 23. Nh2 {[%emt 0:04:54]} dxe4 {[%emt 0:00:02]} 24. dxe4 {[%emt 0:00:22]} c5 {[%emt 0:00:02]} 25. axb6 {[%emt 0:01:47]} axb6 {[%emt 0:00:08]} 26. f3 {[%emt 0:00:31]} Nh5 {[%emt 0:02:29]} 27. Nhf1 {[%emt 0:02:53]} Ba6 {[%emt 0:00:01]} 28. Qf2 {[%emt 0:00:49]} Be2 {[%emt 0:00:35]} 29. Re1 {[%emt 0:00:25]} Bxf3 {[%emt 0:00:37]} 30. Bxf3 {[%emt 0:00:51]} Nxf3+ {[%emt 0:00:10]} 31. Qxf3 {[%emt 0:00:02]} Qxh3 {[%emt 0:00:01]} 32. Qg2 {[%emt 0:00:52]} Qe6 {[%emt 0:00:48]} 33. Nd5 {[%emt 0:00:31]} f5 {[%emt 0:00:43]} 34. Nc7 {[%emt 0:00:25]} 1-0

[Event "Israeli U18-Team-ch 2024"]
[Site "Rishon LeZion"]
[Date "2024.08.01"]
[Round "7.12"]
[White "Duchan, Yoav"]
[Black "Pearl, Oliver"]
[Result "1-0"]
[ECO "B11"]
[WhiteElo "2008"]
[BlackElo "1795"]
[Annotator "RC"]
[PlyCount "71"]
[EventDate "2024.08.01"]
[EventType "team-tourn"]
[EventCountry "ISR"]
[SourceTitle "playchess.com"]
[Source "ChessBase"]
[SourceQuality "1"]
[TimeControl "3000+10"]

1. e4 {[%emt 0:05:04]} c6 {[%emt 0:00:05]} 2. Nc3 {[%emt 0:00:07]} d5 {[%emt 0:00:06]} 3. Nf3 {[%emt 0:00:02]} Bg4 {[%emt 0:00:38]} 4. h3 {[%emt 0:00:06]} Bxf3 {[%emt 0:00:29]} 5. Qxf3 {[%emt 0:00:07]} Nf6 {[%emt 0:02:58]} 6. g3 {[%emt 0:00:45]} e6 {[%emt 0:04:37]} 7. Bg2 {[%emt 0:00:12]} Nbd7 {[%emt 0:03:06]} 8. d4 {[%emt 0:01:29]} Qa5 {[%emt 0:04:34]} 9. O-O {[%emt 0:04:11]} Bb4 {[%emt 0:03:25]} 10. e5 {[%emt 0:03:24]} Bxc3 {[%emt 0:00:54]} 11. bxc3 {[%emt 0:01:52]} Ng8 {[%emt 0:03:09]} 12. a4 {[%emt 0:01:31]} Nb6 {[%emt 0:01:06]} 13. Ba3 {[%emt 0:00:44]} Nc4 {[%emt 0:01:37]} 14. Bb4 {[%emt 0:01:02]} Qc7 {[%emt 0:00:10]} 15. Qg4 {[%emt 0:02:25]} g6 {[%emt 0:01:47]} 16. a5 {[%emt 0:00:21]} h5 {[%emt 0:02:36]} 17. Qg5 {[%emt 0:01:28]} Qd8 {[%emt 0:00:43]} 18. Qxd8+ {[%emt 0:00:46]} Kxd8 {[%emt 0:01:48]} 19. Rfb1 {[%emt 0:01:11]} Nh6 {[%emt 0:02:41]} 20. Bf1 {[%emt 0:02:36]} Nd2 {[%emt 0:02:10]} 21. Rb2 {[%emt 0:00:41]} Nxf1 {[%emt 0:00:16]} 22. Kxf1 {[%emt 0:00:33]} Kc8 {[%emt 0:00:43]} 23. Ke2 {[%emt 0:01:55]} Rd8 {[%emt 0:04:50]} 24. Kf3 {[%emt 0:00:39]} Rd7 {[%emt 0:04:58]} 25. g4 {[%emt 0:01:09]} Ng8 {[%emt 0:02:21]} 26. Bc5 {[%emt 0:01:27]} Ne7 {[%emt 0:00:35]} 27. Rg1 {[%emt 0:01:48]} hxg4+ {[%emt 0:01:09]} 28. hxg4 {[%emt 0:01:49]} Kd8 {[%emt 0:00:50]} 29. Rgb1 {[%emt 0:00:34]} Kc8 {[%emt 0:00:39]} 30. Rh1 {[%emt 0:00:05]} Ng8 {[%emt 0:00:00]} 31. Rh8 {[%emt 0:00:23]} Rd8 {[%emt 0:00:00]} 32. Rh7 {[%emt 0:00:12]} Rd7 {[%emt 0:00:09]} 33. Rg7 {[%emt 0:00:17]} Nh6 {[%emt 0:00:17]} 34. Rb1 {[%emt 0:00:20]} b6 {[%emt 0:00:11]} 35. axb6 {[%emt 0:00:51]} a5 {[%emt 0:00:10]} 36. Rh1 {[%emt 0:00:48]} 1-0

[Event "Israeli U18-Team-ch 2024"]
[Site "Rishon LeZion"]
[Date "2024.08.01"]
[Round "7.13"]
[White "Blonder, Daniel"]
[Black "Medovoy, Yaniv"]
[Result "1-0"]
[ECO "B22"]
[WhiteElo "1913"]
[BlackElo "2059"]
[Annotator "RC"]
[PlyCount "111"]
[EventDate "2024.08.01"]
[EventType "team-tourn"]
[EventCountry "ISR"]
[SourceTitle "playchess.com"]
[Source "ChessBase"]
[SourceQuality "1"]
[TimeControl "3000+10"]

1. e4 {[%emt 0:00:01]} c5 {[%emt 0:00:07]} 2. c3 {[%emt 0:00:02]} Nf6 {[%emt 0:00:06]} 3. e5 {[%emt 0:00:01]} Nd5 {[%emt 0:00:06]} 4. d4 {[%emt 0:00:01]} cxd4 {[%emt 0:00:07]} 5. Nf3 {[%emt 0:00:01]} Nc6 {[%emt 0:00:07]} 6. Bc4 {[%emt 0:00:02]} Nb6 {[%emt 0:00:18]} 7. Bb3 {[%emt 0:00:01]} d5 {[%emt 0:00:07]} 8. exd6 {[%emt 0:00:02]} Qxd6 {[%emt 0:00:13]} 9. O-O {[%emt 0:00:02]} Be6 {[%emt 0:01:20]} 10. Na3 {[%emt 0:00:29]} Bxb3 {[%emt 0:03:39]} 11. axb3 {[%emt 0:00:21]} a6 {[%emt 0:05:08]} 12. cxd4 {[%emt 0:02:25]} e6 {[%emt 0:02:06]} 13. Nc4 {[%emt 0:01:54]} Qd8 {[%emt 0:02:37]} 14. Be3 {[%emt 0:04:52]} Nd5 {[%emt 0:00:26]} 15. Qe2 {[%emt 0:00:38]} Be7 {[%emt 0:03:14]} 16. Nfe5 {[%emt 0:04:15]} Rc8 {[%emt 0:05:49]} 17. Rfc1 {[%emt 0:12:12]} O-O {[%emt 0:00:47]} 18. Nxc6 {[%emt 0:00:31]} Rxc6 {[%emt 0:00:06]} 19. Ne5 {[%emt 0:00:04]} Rxc1+ {[%emt 0:01:33]} 20. Rxc1 {[%emt 0:00:22]} Bf6 {[%emt 0:00:21]} 21. Ng4 {[%emt 0:00:57]} Be7 {[%emt 0:02:39]} 22. Ne5 {[%emt 0:00:01]} Bd6 {[%emt 0:02:53]} 23. h3 {[%emt 0:02:39]} Re8 {[%emt 0:03:59]} 24. Qf3 {[%emt 0:01:23]} Re7 {[%emt 0:01:50]} 25. Nd3 {[%emt 0:03:59]} Rc7 {[%emt 0:01:04]} 26. Rxc7 {[%emt 0:02:31]} Qxc7 {[%emt 0:00:08]} 27. Qe2 {[%emt 0:00:33]} Qc6 {[%emt 0:08:34]} 28. Qd2 {[%emt 0:01:32]} Bc7 {[%emt 0:02:17]} 29. Nb4 {[%emt 0:06:30]} Qd6 {[%emt 0:01:29]} 30. Nxd5 {[%emt 0:00:04]} Qxd5 {[%emt 0:00:01]} 31. Qc3 {[%emt 0:02:26]} Bd6 {[%emt 0:00:02]} 32. Qc4 {[%emt 0:00:49]} Qe4 {[%emt 0:00:06]} 33. Qc8+ {[%emt 0:00:58]} Bf8 {[%emt 0:00:02]} 34. g3 {[%emt 0:00:46]} f6 {[%emt 0:00:10]} 35. Bf4 {[%emt 0:00:59]} Qd5 {[%emt 0:00:58]} 36. Qc4 {[%emt 0:00:09]} Qd7 {[%emt 0:00:01]} 37. Bd2 {[%emt 0:00:43]} Kf7 {[%emt 0:00:15]} 38. Bb4 {[%emt 0:00:09]} Bxb4 {[%emt 0:00:30]} 39. Qxb4 {[%emt 0:00:01]} h5 {[%emt 0:00:18]} 40. Qc5 {[%emt 0:00:14]} g6 {[%emt 0:00:13]} 41. h4 {[%emt 0:00:33]} Qe7 {[%emt 0:00:20]} 42. Qc8 {[%emt 0:00:13]} f5 {[%emt 0:00:42]} 43. Qh8 {[%emt 0:00:32]} Qf6 {[%emt 0:00:06]} 44. Qc8 {[%emt 0:00:09]} Qxd4 {[%emt 0:00:09]} 45. Qxb7+ {[%emt 0:00:02]} Kf6 {[%emt 0:00:02]} 46. Qxa6 {[%emt 0:00:09]} Qd1+ {[%emt 0:00:07]} 47. Qf1 {[%emt 0:00:16]} Qxb3 {[%emt 0:00:02]} 48. Qe2 {[%emt 0:00:04]} Qb6 {[%emt 0:00:18]} 49. Qd2 {[%emt 0:00:03]} e5 {[%emt 0:00:14]} 50. b4 {[%emt 0:00:08]} Qd4 {[%emt 0:00:31]} 51. Qxd4 {[%emt 0:00:17]} exd4 {[%emt 0:00:01]} 52. Kf1 {[%emt 0:00:02]} Ke5 {[%emt 0:00:12]} 53. Ke2 {[%emt 0:00:10]} Ke4 {[%emt 0:00:10]} 54. f3+ {[%emt 0:00:10]} Kd5 {[%emt 0:00:10]} 55. Kd3 {[%emt 0:00:10]} f4 {[%emt 0:00:10]} 56. gxf4 {[%emt 0:00:10]} 1-0

[Event "Israeli U18-Team-ch 2024"]
[Site "Rishon LeZion"]
[Date "2024.08.01"]
[Round "7.15"]
[White "Gadasi, Noam"]
[Black "Abitbul, Matan"]
[Result "0-1"]
[ECO "C65"]
[WhiteElo "1808"]
[BlackElo "2035"]
[Annotator "RC"]
[PlyCount "86"]
[EventDate "2024.08.01"]
[EventType "team-tourn"]
[EventCountry "ISR"]
[SourceTitle "playchess.com"]
[Source "ChessBase"]
[SourceQuality "1"]
[TimeControl "3000+10"]

1. e4 {[%emt 0:01:25]} e5 {[%emt 0:00:01]} 2. Nf3 {[%emt 0:00:25]} Nc6 {[%emt 0:00:02]} 3. Bb5 {[%emt 0:00:14]} Nf6 {[%emt 0:00:01]} 4. d3 {[%emt 0:00:13]} Bc5 {[%emt 0:00:02]} 5. O-O {[%emt 0:00:07]} Nd4 {[%emt 0:00:01]} 6. Nxd4 {[%emt 0:00:42]} Bxd4 {[%emt 0:00:03]} 7. c3 {[%emt 0:01:58]} Bb6 {[%emt 0:00:01]} 8. Nd2 {[%emt 0:03:31]} O-O {[%emt 0:00:25]} 9. h3 {[%emt 0:00:51]} d5 {[%emt 0:00:41]} 10. Qe2 {[%emt 0:00:39]} c6 {[%emt 0:01:07]} 11. Ba4 {[%emt 0:00:10]} Re8 {[%emt 0:02:08]} 12. Nf3 {[%emt 0:00:56]} h6 {[%emt 0:03:38]} 13. Re1 {[%emt 0:02:47]} Qd6 {[%emt 0:02:13]} 14. Bd2 {[%emt 0:02:15]} dxe4 {[%emt 0:14:27]} 15. dxe4 {[%emt 0:00:19]} Be6 {[%emt 0:00:33]} 16. Bb3 {[%emt 0:04:25]} Bxb3 {[%emt 0:01:12]} 17. axb3 {[%emt 0:00:02]} Nh5 {[%emt 0:00:17]} 18. Kh2 {[%emt 0:04:43]} Nf4 {[%emt 0:01:35]} 19. Bxf4 {[%emt 0:00:32]} exf4 {[%emt 0:00:02]} 20. Kg1 {[%emt 0:03:28]} Re7 {[%emt 0:01:11]} 21. e5 {[%emt 0:08:15]} Qe6 {[%emt 0:01:27]} 22. Ra4 {[%emt 0:00:50]} Qxb3 {[%emt 0:01:02]} 23. Rxf4 {[%emt 0:00:09]} Rae8 {[%emt 0:01:06]} 24. Qd2 {[%emt 0:04:18]} Bc7 {[%emt 0:03:21]} 25. Rb4 {[%emt 0:00:34]} Qa2 {[%emt 0:01:10]} 26. Rxb7 {[%emt 0:02:25]} Qa6 {[%emt 0:01:13]} 27. Rb4 {[%emt 0:03:30]} Bxe5 {[%emt 0:00:29]} 28. Rd1 {[%emt 0:00:50]} Bc7 {[%emt 0:02:06]} 29. g3 {[%emt 0:02:13]} Bb6 {[%emt 0:01:14]} 30. Rg4 {[%emt 0:01:02]} h5 {[%emt 0:07:12]} 31. Rf4 {[%emt 0:01:00]} Re2 {[%emt 0:00:46]} 32. Qd3 {[%emt 0:00:00]} Bxf2+ {[%emt 0:00:30]} 33. Kh1 {[%emt 0:00:09]} Qxd3 {[%emt 0:00:36]} 34. Rxd3 {[%emt 0:00:01]} Bxg3 {[%emt 0:00:18]} 35. Rc4 {[%emt 0:00:15]} Rxb2 {[%emt 0:01:38]} 36. Rd1 {[%emt 0:00:31]} Rf2 {[%emt 0:00:34]} 37. Nd4 {[%emt 0:00:06]} h4 {[%emt 0:00:35]} 38. Rxc6 {[%emt 0:00:10]} Rh2+ {[%emt 0:00:11]} 39. Kg1 {[%emt 0:00:01]} Rxh3 {[%emt 0:00:15]} 40. Rc4 {[%emt 0:00:30]} Rh2 {[%emt 0:00:09]} 41. Rb1 {[%emt 0:00:05]} Ra2 {[%emt 0:00:29]} 42. Rcb4 {[%emt 0:00:15]} h3 {[%emt 0:00:20]} 43. R4b2 {[%emt 0:00:14]} Rxb2 {[%emt 0:00:08]} 0-1

[Event "Israeli U18-Team-ch 2024"]
[Site "Rishon LeZion"]
[Date "2024.08.01"]
[Round "7.16"]
[White "Berlad, Asaf"]
[Black "Gilad, Tomer"]
[Result "1-0"]
[ECO "E55"]
[WhiteElo "1955"]
[BlackElo "1826"]
[Annotator "RC"]
[PlyCount "87"]
[EventDate "2024.08.01"]
[EventType "team-tourn"]
[EventCountry "ISR"]
[SourceTitle "playchess.com"]
[Source "ChessBase"]
[SourceQuality "1"]
[TimeControl "3000+10"]

1. d4 {[%emt 0:00:07]} Nf6 {[%emt 0:00:05]} 2. c4 {[%emt 0:00:09]} e6 {[%emt 0:00:06]} 3. Nc3 {[%emt 0:00:08]} Bb4 {[%emt 0:00:18]} 4. e3 {[%emt 0:00:15]} O-O {[%emt 0:00:27]} 5. Bd3 {[%emt 0:00:22]} d5 {[%emt 0:00:14]} 6. Nf3 {[%emt 0:00:28]} Nbd7 {[%emt 0:01:18]} 7. O-O {[%emt 0:00:33]} c5 {[%emt 0:01:00]} 8. a3 {[%emt 0:00:49]} cxd4 {[%emt 0:01:44]} 9. axb4 {[%emt 0:04:54]} dxc3 {[%emt 0:00:07]} 10. bxc3 {[%emt 0:00:22]} dxc4 {[%emt 0:02:06]} 11. Bxc4 {[%emt 0:00:18]} Qc7 {[%emt 0:00:40]} 12. Qb3 {[%emt 0:00:40]} Ne5 {[%emt 0:03:04]} 13. Nxe5 {[%emt 0:02:59]} Qxe5 {[%emt 0:00:08]} 14. Ra5 {[%emt 0:02:08]} Qc7 {[%emt 0:01:55]} 15. Be2 {[%emt 0:00:48]} b6 {[%emt 0:02:15]} 16. Ra1 {[%emt 0:00:19]} Bb7 {[%emt 0:00:54]} 17. c4 {[%emt 0:00:41]} Rfd8 {[%emt 0:04:44]} 18. Bb2 {[%emt 0:01:56]} Rd2 {[%emt 0:02:18]} 19. Rfe1 {[%emt 0:01:29]} Ne4 {[%emt 0:04:38]} 20. f3 {[%emt 0:02:04]} Nf6 {[%emt 0:02:11]} 21. Qc3 {[%emt 0:08:11]} Rdd8 {[%emt 0:01:30]} 22. Rec1 {[%emt 0:00:29]} h5 {[%emt 0:02:07]} 23. c5 {[%emt 0:04:17]} bxc5 {[%emt 0:00:20]} 24. Qxc5 {[%emt 0:00:42]} Qxc5 {[%emt 0:02:08]} 25. bxc5 {[%emt 0:02:17]} Rd2 {[%emt 0:01:26]} 26. Bxf6 {[%emt 0:00:11]} gxf6 {[%emt 0:01:36]} 27. Bb5 {[%emt 0:02:21]} Rb2 {[%emt 0:00:28]} 28. Bd7 {[%emt 0:00:20]} Rd8 {[%emt 0:03:32]} 29. c6 {[%emt 0:01:36]} Bc8 {[%emt 0:08:40]} 30. Rxa7 {[%emt 0:00:32]} Kg7 {[%emt 0:02:17]} 31. Ra8 {[%emt 0:01:01]} Rxd7 {[%emt 0:00:25]} 32. cxd7 {[%emt 0:00:19]} Bxd7 {[%emt 0:00:01]} 33. Ra7 {[%emt 0:01:57]} Bb5 {[%emt 0:00:29]} 34. Rcc7 {[%emt 0:01:45]} h4 {[%emt 0:00:24]} 35. Rxf7+ {[%emt 0:00:28]} Kg6 {[%emt 0:00:06]} 36. h3 {[%emt 0:01:02]} Rb1+ {[%emt 0:00:16]} 37. Kh2 {[%emt 0:00:08]} Rb2 {[%emt 0:00:01]} 38. Rg7+ {[%emt 0:00:50]} Kf5 {[%emt 0:00:04]} 39. Rg4 {[%emt 0:00:30]} Bf1 {[%emt 0:00:12]} 40. Ra5+ {[%emt 0:00:40]} e5 {[%emt 0:00:01]} 41. Ra8 {[%emt 0:01:21]} Be2 {[%emt 0:00:22]} 42. Kg1 {[%emt 0:00:15]} Bb5 {[%emt 0:00:18]} 43. e4+ {[%emt 0:00:11]} Ke6 {[%emt 0:00:25]} 44. Rxh4 {[%emt 0:00:06]} 1-0